fUSD/lending_fUSD_20241030
["ID","MTS","AMOUNT","RATE_DAILY","PERIOD"]
[341068922,1730326242909,-151.0,0.0004397,14]
[341068923,1730326242918,-179.292386,0.0004397,14]
[341068924,1730326242928,-17420.87533526,0.0004397,2]
[341068925,1730326242937,-151.0,0.00043972,14]
[341068926,1730326242947,-151.0,0.00043972,14]
[341068927,1730326242956,-151.0,0.00043972,14]
[341068928,1730326242965,-151.0,0.00043972,14]
[341068930,1730326242974,-151.0,0.00043972,14]
[341068932,1730326242984,-161.241889,0.00043972,14]
[341068934,1730326242993,-243.51875,0.00043972,14]
[341068936,1730326243002,-151.0,0.00043972,14]
[341068937,1730326243012,-151.0,0.00043972,14]
[341068938,1730326243022,-151.0,0.00043972,14]
[341068939,1730326243031,-151.0,0.00043972,14]
[341068940,1730326243041,-151.0,0.00043972,14]
[341068941,1730326243051,-336.3191635,0.00043973,10]
[341068942,1730326243060,-336.62079988,0.00043973,10]
[341068943,1730326243069,-500.0,0.00043973,10]
[341068944,1730326243078,-17422.63735085,0.00043976,2]
[341068945,1730326243087,-151.0,0.00043976,14]
[341068946,1730326243097,-369.445019,0.00043976,14]
[341068947,1730326243107,-369.445019,0.00043976,14]
[341068948,1730326243116,-369.445019,0.00043976,14]
[341068949,1730326243126,-369.445019,0.00043976,14]
[341068950,1730326243135,-151.0,0.00043976,14]
[341068951,1730326243145,-151.0,0.00043976,14]
[341068952,1730326243155,-168.781846,0.00043976,14]
[341068953,1730326243165,-168.781846,0.00043976,14]
[341068954,1730326243174,-168.781846,0.00043976,14]
[341068955,1730326243184,-168.781846,0.00043976,14]
[341068956,1730326243195,-229.603139,0.00043976,14]
[341068957,1730326243204,-229.603139,0.00043976,14]
[341068958,1730326243214,-798.839913,0.00043976,14]
[341068959,1730326243225,-798.839913,0.00043976,14]
[341068960,1730326243234,-229.603139,0.00043976,14]
[341068961,1730326243243,-229.603139,0.00043976,14]
[341068962,1730326243253,-798.839913,0.00043976,14]
[341068963,1730326243262,-798.839913,0.00043976,14]
[341068964,1730326243272,-151.0,0.00043976,14]
[341068965,1730326243281,-50000.0,0.00043976,12]
[341068966,1730326243293,-50000.0,0.00043976,13]
[341068967,1730326243303,-50000.0,0.00043976,14]
[341068968,1730326243313,-50000.0,0.00043976,16]
[341068969,1730326243323,-50000.0,0.00043976,18]
[341068970,1730326243335,-50000.0,0.00043976,19]
[341068971,1730326243345,-50000.0,0.00043976,2]
[341068972,1730326243354,-50000.0,0.00043976,3]
[341068973,1730326243363,-50000.0,0.00043976,4]
[341068974,1730326243373,-50000.0,0.00043976,7]
[341068975,1730326243383,-50000.0,0.00043976,9]
[341068976,1730326243394,-50000.0,0.00043976,10]
[341068977,1730326243404,-50000.0,0.00043976,11]
[341068978,1730326243414,-8694.87177065,0.00043977,2]
[341068979,1730326243424,-369.445019,0.00043977,14]
[341068980,1730326243433,-369.445019,0.00043977,14]
[341068981,1730326243443,-369.445019,0.00043977,14]
[341068982,1730326243453,-369.445019,0.00043977,14]
[341068983,1730326243463,-369.445019,0.00043977,14]
[341068984,1730326243473,-369.445019,0.00043977,14]
[341068985,1730326243482,-369.445019,0.00043977,14]
[341068986,1730326243492,-369.445019,0.00043977,14]
[341068987,1730326243502,-369.445019,0.00043977,14]
[341068988,1730326243512,-369.445017,0.00043977,14]
[341068989,1730326243522,-151.0,0.00043977,14]
[341068990,1730326243532,-151.0,0.00043977,14]
[341068991,1730326243541,-151.0,0.00043977,14]
[341068993,1730326243551,-151.0,0.00043977,14]
[341068994,1730326243560,-151.0,0.00043977,14]
[341068995,1730326243570,-168.781846,0.00043977,14]
[341068996,1730326243579,-168.781846,0.00043977,14]
[341068997,1730326243589,-168.781846,0.00043977,14]
[341068998,1730326243598,-168.781846,0.00043977,14]
[341068999,1730326243608,-168.781846,0.00043977,14]
[341069000,1730326243617,-168.781846,0.00043977,14]
[341069001,1730326243626,-168.781846,0.00043977,14]
[341069002,1730326243635,-168.781846,0.00043977,14]
[341069003,1730326243646,-168.781846,0.00043977,14]
[341069004,1730326243655,-168.781841,0.00043977,14]
[341069005,1730326243664,-229.603139,0.00043977,14]
[341069006,1730326243674,-229.603139,0.00043977,14]
[341069007,1730326243684,-229.603139,0.00043977,14]
[341069008,1730326243693,-229.603139,0.00043977,14]
[341069009,1730326243819,-798.839913,0.00043977,14]
[341069010,1730326243829,-229.603139,0.00043977,14]
[341069011,1730326243839,-798.839913,0.00043977,14]
[341069012,1730326243849,-798.839913,0.00043977,14]
[341069013,1730326243859,-798.839913,0.00043977,14]
[341069014,1730326243869,-798.839913,0.00043977,14]
[341069015,1730326243880,-229.603139,0.00043977,14]
[341069016,1730326243889,-229.603139,0.00043977,14]
[341069017,1730326243899,-229.603139,0.00043977,14]
[341069018,1730326243909,-229.603139,0.00043977,14]
[341069019,1730326243919,-229.60314,0.00043977,14]
[341069020,1730326243928,-798.839913,0.00043977,14]
[341069021,1730326243938,-798.839913,0.00043977,14]
[341069022,1730326243948,-798.839913,0.00043977,14]
[341069023,1730326243957,-798.839913,0.00043977,14]
[341069024,1730326243967,-798.83991,0.00043977,14]
[341069025,1730326243977,-550.17082055,0.00043977,5]
[341069026,1730326243986,-1944.09996996,0.00043977,5]
[341069027,1730326243996,-956.15013593,0.00043977,5]
[341069028,1730326244006,-854.41191503,0.00043977,5]
[341069029,1730326244016,-579.54944876,0.00043977,5]
[341069030,1730326244025,-174.49251973,0.00043977,7]
[341069031,1730326244035,-105841.33640008,0.00043977,2]
[341069032,1730326244044,-7736.0785489,0.00043977,7]
[341069033,1730326244053,-4391.9614839,0.00043977,7]
[341069034,1730326244062,-10013.85372364,0.00043977,2]
[341069035,1730326244072,-14528.2739184,0.00043977,2]
[341069036,1730326244081,-10055.06102876,0.00043977,7]
[341069037,1730326244090,-1807.61452829,0.00043977,2]
[341069038,1730326244099,-3891.27314273,0.00043977,2]
[341069039,1730326244109,-11649.45597829,0.00043977,2]
[341069040,1730326244118,-1960.93252604,0.00043977,2]
[341069041,1730326244127,-5054.14217286,0.00043977,2]
[341069042,1730326244136,-3195.35599753,0.00043977,2]
[341069043,1730326244146,-1549.41601206,0.00043977,2]
[341069044,1730326244155,-112728.79683255,0.00043977,2]
[341069045,1730326244187,-611.83066081,0.00043977,2]
[341069046,1730326244198,-580.62479608,0.00043977,2]
[341069047,1730326244321,-8118.82012595,0.00043977,2]
[341069048,1730326244330,-5430.36745405,0.00043977,2]
[341069049,1730326244341,-467.19098958,0.00043977,2]
[341069050,1730326244352,-1000.01801242,0.00043977,2]
[341069056,1730326246116,-1000.0,0.000437,15]
[341069057,1730326246126,-500.0,0.00043834,2]
[341069058,1730326246137,-2781.0519054,0.00043977,2]
[341069059,1730326246271,-1810.35595738,0.00043977,2]
[341069068,1730326650935,161.92,0.00015342,2]
[341069069,1730327107974,2736838.2461857,0.00016,2]
[341069070,1730327110502,15840.75998078,0.000154,2]
[341069071,1730327154513,6130.84506688,0.000159,2]
[341069084,1730327269943,156.36,0.00015342,2]
[341069085,1730327283753,3432456.7643094,0.00015,2]
[341069087,1730327302918,999.999999,0.0002,2]
[341069088,1730327322609,23022.0,0.0002509,120]
[341069119,1730327432123,-1000.0,0.0002509,120]
[341069127,1730327432384,-14532.387,0.0002509,120]
[341069128,1730327432411,-3629.15,0.0002509,120]
[341069129,1730327432425,-1202.03,0.0002509,120]
[341069130,1730327432439,-61142.05848102,0.0002509,120]
[341069131,1730327432450,-3944.31447181,0.000299,2]
[341069132,1730327432460,-5554.37531157,0.0003,2]
[341069133,1730327432470,-3436.55,0.00035756,2]
[341069134,1730327432481,-315.85,0.00035756,2]
[341069135,1730327432491,-150.0,0.00035756,7]
[341069136,1730327432501,-2017.21757114,0.00037,2]
[341069137,1730327432510,-315.85,0.00037544,2]
[341069138,1730327432521,-1092.56,0.00039169,2]
[341069139,1730327432532,-315.85,0.00039332,2]
[341069140,1730327432543,-251.28,0.00039574,2]
[341069141,1730327432554,-10000.0,0.0004,7]
[341069142,1730327432563,-152.0,0.00040071,3]
[341069143,1730327432573,-1000.0,0.0004102,2]
[341069144,1730327432582,-315.85,0.00041119,2]
[341069145,1730327432592,-1092.56,0.00041433,2]
[341069146,1730327432601,-42129.17530527,0.00042,2]
[341069147,1730327432610,-442.73,0.00042127,2]
[341069148,1730327432619,-157.0,0.00042206,2]
[341069149,1730327432628,-607.36,0.000423,2]
[341069150,1730327432638,-5445.42617949,0.0004238,2]
[341069151,1730327432647,-2487.475,0.000425,60]
[341069152,1730327432656,-179.34,0.00042685,120]
[341069154,1730327432665,-1186.78561481,0.000427,2]
[341069156,1730327432674,-2013.7705,0.000429,2]
[341069158,1730327432684,-1814.4439,0.000429,2]
[341069168,1730327432811,-315.85,0.00042907,2]
[341069171,1730327432827,-158.419,0.00042984,66]
[341069173,1730327432838,-62575.6825758,0.00043,2]
[341069199,1730327438299,-150.0,0.00041096,2]
[341069200,1730327438309,-150.0,0.00042177,2]
[341069201,1730327438318,-1000.0,0.000427,2]
[341069202,1730327438327,-9916.25702667,0.00043,2]
[341069203,1730327438340,-12612.34474342,0.00043,2]
[341069204,1730327438351,-13503.71565411,0.00043,2]
[341069205,1730327438361,-150.0,0.00043259,2]
[341069206,1730327438370,-5864.0,0.00043455,2]
[341069207,1730327438379,-275.47836187,0.000435,80]
[341069208,1730327438391,-9724.52163813,0.000435,80]
[341069209,1730327438400,-2500.0,0.00043675,2]
[341069210,1730327438409,-6671.3772,0.00043687,2]
[341069211,1730327438418,-3062.1745,0.00043687,2]
[341069212,1730327438427,-884.5989301,0.00043689,15]
[341069213,1730327438437,-1092.56,0.00043696,2]
[341069214,1730327438446,-2498.8957,0.00043775,2]
[341069215,1730327438455,-2940.7989,0.00043775,2]
[341069216,1730327438464,-20770.0902973,0.00043787,2]
[341069217,1730327438475,-200.59516231,0.00043789,2]
[341069218,1730327438483,-20770.0902973,0.0004379,2]
[341069219,1730327438492,-33901.6147,0.00043825,2]
[341069220,1730327438501,-200.59516231,0.00043833,2]
[341069221,1730327438511,-200.59516231,0.00043852,2]
[341069222,1730327438519,-150.0,0.00043852,2]
[341069223,1730327438528,-200.59516231,0.00043859,2]
[341069224,1730327438538,-4618.67748686,0.00043875,2]
[341069229,1730327440222,-1110.56236505,0.00043875,2]
[341069230,1730327440468,-300.0,0.00043875,2]
[341069239,1730327445314,-14740.85044539,0.00043875,2]
[341069240,1730327445324,-7140.54813169,0.0004388,2]
[341069241,1730327445333,-195.2207391,0.00043881,2]
[341069242,1730327445342,-186.42519775,0.00043881,2]
[341069243,1730327445351,-660.78518824,0.00043881,2]
[341069244,1730327445360,-314.0,0.0004389,2]
[341069245,1730327445368,-200.59516231,0.00043892,2]
[341069246,1730327445377,-150.0,0.00043918,2]
[341069247,1730327445386,-150.0,0.00043918,2]
[341069248,1730327445395,-1533.06796253,0.00043925,2]
[341069256,1730327446170,-2714.47870645,0.00043925,2]
[341069257,1730327446305,-16522.54362832,0.00043925,2]
[341069258,1730327446314,-150.0,0.00043936,2]
[341069259,1730327446324,-150.0,0.00043943,2]
[341069260,1730327446333,-20770.0902973,0.00043944,2]
[341069261,1730327446343,-150.0,0.00043945,2]
[341069262,1730327446352,-4580.8523548,0.0004397,2]
[341069263,1730327446361,-17278.4087554,0.0004397,2]
[341069264,1730327446372,-500.0,0.00043973,2]
[341069265,1730327446392,-150.0,0.00043973,2]
[341069266,1730327446404,-384.21404512,0.00043976,2]
[341069267,1730327446413,-500.0,0.00043976,2]
[341069268,1730327446422,-1520.6,0.00043979,120]
[341069269,1730327446433,-219.0,0.0004398,7]
[341069270,1730327446443,-151.0,0.0004398,14]
[341069271,1730327446453,-151.0,0.0004398,14]
[341069272,1730327446464,-151.0,0.0004398,14]
[341069273,1730327446474,-151.0,0.0004398,14]
[341069274,1730327446483,-151.0,0.0004398,14]
[341069275,1730327446493,-151.0,0.0004398,14]
[341069276,1730327446502,-151.0,0.0004398,14]
[341069277,1730327446512,-152.299467,0.0004398,14]
[341069278,1730327446521,-150.0,0.0004398,2]
[341069279,1730327446531,-249.0,0.0004398,2]
[341069281,1730327446540,-8103.99145206,0.00043981,2]
[341069284,1730327452426,150.0,0.00017605,2]
[341069294,1730327756836,154.81,0.00015342,2]
[341069296,1730328121986,300.0,0.00019725,2]
[341069298,1730328383449,1613.44,0.0002001,2]
[341069307,1730328438312,5540.649562,0.0002,2]
[341069325,1730328632284,-729.0,0.0003,2]
[341069326,1730328632294,-250.957301,0.00035,22]
[341069327,1730328632303,-200.0,0.00035756,2]
[341069328,1730328632313,-725.66,0.000375,2]
[341069329,1730328632322,-999.46,0.000375,22]
[341069330,1730328632332,-1051.19784977,0.000375,2]
[341069331,1730328632346,-1147.00343464,0.000375,2]
[341069332,1730328632357,-1947.2218158,0.000375,2]
[341069333,1730328632368,-2260.50689979,0.000375,2]
[341069334,1730328632378,-156.0810928,0.00037799,2]
[341069335,1730328632389,-143.9189072,0.00037799,2]
[341069336,1730328632399,-249.09,0.000378,31]
[341069337,1730328632408,-249.09,0.000378,31]
[341069338,1730328632417,-249.09,0.000378,31]
[341069339,1730328632427,-249.09,0.000378,31]
[341069340,1730328632436,-249.09,0.000378,31]
[341069341,1730328632445,-249.09,0.000378,31]
[341069342,1730328632454,-249.09,0.000378,31]
[341069343,1730328632464,-249.09,0.000378,31]
[341069344,1730328632474,-249.09,0.000378,31]
[341069345,1730328632483,-249.09,0.000378,31]
[341069346,1730328632492,-249.09,0.000378,31]
[341069347,1730328632502,-125.54539125,0.000378,31]
[341069348,1730328632513,-123.54460875,0.000378,31]
[341069349,1730328632522,-500.0,0.00038421,7]
[341069350,1730328632536,-222.54233573,0.00038637,7]
[341069351,1730328632548,-277.45766427,0.00038637,7]
[341069352,1730328632558,-425.47807582,0.00038755,32]
[341069353,1730328632569,-573.98192418,0.00038755,32]
[341069354,1730328632579,-500.0,0.00038805,7]
[341069355,1730328632588,-965.55,0.00039241,2]
[341069356,1730328632597,-279.67,0.0003939,2]
[341069357,1730328632606,-249.09,0.000394,31]
[341069358,1730328632615,-249.09,0.000394,31]
[341069359,1730328632624,-249.09,0.000394,31]
[341069360,1730328632633,-249.09,0.000394,31]
[341069361,1730328632642,-249.09,0.000394,31]
[341069362,1730328632651,-249.09,0.000394,31]
[341069363,1730328632660,-249.09,0.000394,31]
[341069364,1730328632668,-249.09,0.000394,31]
[341069365,1730328632677,-249.09,0.000394,31]
[341069366,1730328632686,-249.09,0.000394,31]
[341069367,1730328632695,-249.09,0.000394,31]
[341069368,1730328632704,-249.09,0.000394,31]
[341069369,1730328632713,-249.09,0.000394,31]
[341069370,1730328632722,-249.09,0.000394,31]
[341069371,1730328632731,-249.09,0.000394,31]
[341069372,1730328632741,-249.09,0.000394,31]
[341069373,1730328632750,-249.09,0.000394,31]
[341069374,1730328632759,-249.09,0.000394,31]
[341069375,1730328632768,-249.09,0.000394,31]
[341069376,1730328632778,-249.09,0.000394,31]
[341069377,1730328632787,-249.09,0.000394,31]
[341069378,1730328632796,-249.09,0.000394,31]
[341069379,1730328632806,-249.09,0.000394,31]
[341069380,1730328632815,-249.09,0.000394,31]
[341069381,1730328632824,-515.6960998,0.00039957,7]
[341069382,1730328632833,-388.6746746,0.0004001,41]
[341069383,1730328632845,-541.49640217,0.0004001,41]
[341069384,1730328632856,-316.45871823,0.0004001,41]
[341069385,1730328632865,-515.97914468,0.00040118,30]
[341069386,1730328632875,-200.0,0.00040225,2]
[341069387,1730328632884,-514.55716131,0.00040501,30]
[341069388,1730328632892,-533.19692702,0.00040635,30]
[341069389,1730328632902,-249.09,0.000409,31]
[341069390,1730328632911,-249.09,0.000409,31]
[341069391,1730328632924,-249.09,0.000409,31]
[341069392,1730328632934,-249.09,0.000409,31]
[341069393,1730328632944,-249.09,0.000409,31]
[341069394,1730328632954,-249.09,0.000409,31]
[341069395,1730328633095,-249.09,0.000409,31]
[341069396,1730328633107,-249.09,0.000409,31]
[341069397,1730328633117,-249.09,0.000409,31]
[341069398,1730328633127,-249.09,0.000409,31]
[341069399,1730328633136,-249.09,0.000409,31]
[341069400,1730328633146,-249.09,0.000409,31]
[341069401,1730328633155,-249.09,0.000409,31]
[341069402,1730328633164,-249.09,0.000409,31]
[341069403,1730328633174,-249.09,0.000409,31]
[341069404,1730328633183,-249.09,0.000409,31]
[341069405,1730328633193,-249.09,0.000409,31]
[341069406,1730328633203,-249.09,0.000409,31]
[341069407,1730328633212,-249.09,0.000409,31]
[341069408,1730328633222,-249.09,0.000409,31]
[341069409,1730328633231,-249.09,0.000409,31]
[341069410,1730328633240,-249.09,0.000409,31]
[341069411,1730328633250,-249.09,0.000409,31]
[341069412,1730328633259,-249.09,0.000409,31]
[341069413,1730328633268,-279.67,0.0004099,30]
[341069414,1730328633278,-270.511,0.00040999,59]
[341069415,1730328633287,-10000.0,0.00041,120]
[341069416,1730328633296,-2751.0,0.00041036,120]
[341069417,1730328633306,-150.0,0.00041056,7]
[341069418,1730328633315,-157.0,0.00041096,2]
[341069419,1730328633324,-661.67,0.00041139,2]
[341069420,1730328633338,-500.0,0.00041188,30]
[341069421,1730328633348,-800.0,0.00041221,2]
[341069422,1730328633357,-221.36,0.00041221,2]
[341069423,1730328633367,-965.55,0.00041505,2]
[341069424,1730328633376,-500.0,0.00041908,30]
[341069425,1730328633386,-166.14,0.00042327,120]
[341069426,1730328633395,-167.25,0.00042463,2]
[341069427,1730328633404,-279.67,0.0004249,30]
[341069428,1730328633416,-249.09,0.000425,33]
[341069429,1730328633425,-249.09,0.000425,33]
[341069430,1730328633435,-249.09,0.000425,33]
[341069431,1730328633444,-249.09,0.000425,33]
[341069432,1730328633453,-249.09,0.000425,33]
[341069433,1730328633462,-249.09,0.000425,33]
[341069434,1730328633472,-249.09,0.000425,33]
[341069435,1730328633481,-249.09,0.000425,33]
[341069436,1730328633490,-249.09,0.000425,33]
[341069437,1730328633499,-249.09,0.000425,33]
[341069438,1730328633509,-249.09,0.000425,33]
[341069439,1730328633519,-249.09,0.000425,33]
[341069440,1730328633527,-249.09,0.000425,33]
[341069441,1730328633537,-249.09,0.000425,33]
[341069442,1730328633546,-249.09,0.000425,33]
[341069443,1730328633555,-249.09,0.000425,33]
[341069444,1730328633565,-249.09,0.000425,33]
[341069445,1730328633574,-249.09,0.000425,33]
[341069446,1730328633583,-249.09,0.000425,33]
[341069447,1730328633594,-249.09,0.000425,33]
[341069448,1730328633607,-249.09,0.000425,33]
[341069449,1730328633622,-249.09,0.000425,33]
[341069450,1730328633631,-249.09,0.000425,33]
[341069451,1730328633640,-249.09,0.000425,33]
[341069452,1730328633650,-500.0,0.000428,30]
[341069453,1730328633659,-2475.0,0.000429,2]
[341069454,1730328633668,-150.0,0.00042948,2]
[341069455,1730328633677,-150.0,0.00043099,2]
[341069456,1730328633686,-150.0,0.00043164,2]
[341069457,1730328633696,-200.0,0.000433,15]
[341069458,1730328633705,-500.0,0.000434,15]
[341069459,1730328633714,-1500.0,0.00043434,7]
[341069460,1730328633724,-150.0,0.00043497,2]
[341069461,1730328633733,-800.0,0.000435,15]
[341069462,1730328633743,-500.0,0.00043519,30]
[341069463,1730328633752,-279.67,0.0004354,30]
[341069464,1730328633761,-150.0,0.00043545,2]
[341069465,1730328633771,-22635.7650141,0.0004355,2]
[341069466,1730328633781,-279.67,0.00043552,30]
[341069467,1730328633790,-759.33,0.00043562,2]
[341069468,1730328633799,-564.68,0.00043562,2]
[341069469,1730328633809,-759.33,0.00043562,2]
[341069470,1730328633818,-759.33,0.00043562,2]
[341069471,1730328633828,-759.33,0.00043562,2]
[341069472,1730328633839,-759.33,0.00043562,2]
[341069473,1730328633848,-759.33,0.00043562,2]
[341069474,1730328633857,-759.33,0.00043562,2]
[341069475,1730328633867,-759.33,0.00043562,2]
[341069476,1730328633876,-759.33,0.00043562,2]
[341069477,1730328633886,-759.33,0.00043562,2]
[341069478,1730328633895,-1545.48405228,0.00043578,7]
[341069479,1730328633904,-1100.0,0.000436,15]
[341069480,1730328633914,-279.67,0.00043637,30]
[341069481,1730328633924,-279.67,0.00043637,30]
[341069482,1730328633934,-279.67,0.00043637,30]
[341069483,1730328633943,-279.67,0.00043637,30]
[341069484,1730328633952,-279.67,0.00043637,30]
[341069485,1730328633963,-18069.575,0.00043647,120]
[341069486,1730328633972,-16182.17298234,0.00043647,120]
[341069487,1730328633988,-782.05965265,0.00043647,120]
[341069488,1730328634000,-1105.34336501,0.00043647,120]
[341069489,1730328634009,-649.10526893,0.00043647,120]
[341069490,1730328634025,-5904.70855613,0.00043647,120]
[341069491,1730328634043,-271.96394405,0.00043647,120]
[341069492,1730328634055,-2034.3771887,0.00043647,120]
[341069493,1730328634067,-809.30044201,0.00043647,120]
[341069494,1730328634202,-2239.38172565,0.00043647,120]
[341069495,1730328634215,-6160.73887453,0.00043647,120]
[341069496,1730328634224,-1340.61263864,0.00043647,120]
[341069497,1730328634236,-415.67656536,0.00043647,120]
[341069498,1730328634248,-807.84041336,0.00043647,120]
[341069499,1730328634259,-889.15149544,0.00043647,120]
[341069500,1730328634286,-6551.18656485,0.00043647,120]
[341069501,1730328634300,-516.69640186,0.00043647,120]
[341069503,1730328638257,-274.27572277,0.00043638,2]
[341069504,1730328638268,-6751.11460843,0.00043638,2]
[341069505,1730328638281,-3060.84204934,0.00043638,2]
[341069506,1730328638323,-18909.51267303,0.00043638,2]
[341069507,1730328638333,-7548.41192049,0.00043647,120]
[341069508,1730328638348,-18069.576,0.00043647,120]
[341069509,1730328638361,-1400.0,0.000437,15]
[341069510,1730328638370,-150.0,0.00043707,2]
[341069511,1730328638379,-150.0,0.00043707,2]
[341069512,1730328638388,-150.0,0.00043712,2]
[341069513,1730328638398,-150.0,0.00043712,2]
[341069514,1730328638407,-150.0,0.00043716,2]
[341069515,1730328638416,-150.0,0.00043717,2]
[341069516,1730328638427,-150.0,0.00043726,2]
[341069517,1730328638438,-150.0,0.00043728,2]
[341069518,1730328638448,-150.0,0.00043729,2]
[341069519,1730328638458,-150.0,0.00043729,2]
[341069520,1730328638470,-150.0,0.0004373,2]
[341069521,1730328638480,-150.0,0.00043731,2]
[341069522,1730328638491,-150.0,0.00043736,2]
[341069523,1730328638502,-3106.26278695,0.00043741,30]
[341069524,1730328638513,-150.0,0.00043742,2]
[341069525,1730328638523,-150.0,0.00043747,2]
[341069526,1730328638649,-791.5147831,0.00043748,2]
[341069527,1730328638660,-150.0,0.00043749,2]
[341069528,1730328638670,-270.48674412,0.00043755,31]
[341069529,1730328638679,-500.0,0.00043756,4]
[341069530,1730328638688,-150.0,0.00043762,2]
[341069531,1730328638698,-2750.90292473,0.00043765,2]
[341069532,1730328638707,-500.0,0.00043765,4]
[341069533,1730328638717,-150.0,0.00043766,2]
[341069534,1730328638726,-256.20505689,0.00043766,2]
[341069535,1730328638735,-150.0,0.00043767,2]
[341069536,1730328638744,-150.0,0.00043767,2]
[341069537,1730328638754,-200.0,0.00043768,2]
[341069538,1730328638763,-965.55,0.00043768,2]
[341069539,1730328638772,-150.0,0.00043769,2]
[341069540,1730328638783,-150.0,0.0004377,2]
[341069541,1730328638792,-500.0,0.00043774,4]
[341069542,1730328638801,-150.0,0.00043775,2]
[341069543,1730328638810,-500.0,0.00043782,4]
[341069545,1730328638821,-150.0,0.00043783,2]
[341069547,1730328638832,-150.0,0.00043784,2]
[341069549,1730328638842,-1947.59281712,0.00043785,2]
[341069551,1730328638852,-150.0,0.00043786,2]
[341069553,1730328638864,-150.0,0.00043786,2]
[341069556,1730328638874,-150.0,0.00043787,2]
[341069557,1730328638883,-150.0,0.00043787,2]
[341069561,1730328638893,-150.0,0.0004379,2]
[341069563,1730328638904,-150.0,0.0004379,2]
[341069565,1730328638914,-500.0,0.00043791,4]
[341069567,1730328638923,-150.0,0.00043795,2]
[341069569,1730328638933,-150.0,0.00043796,2]
[341069571,1730328638942,-150.0,0.00043796,2]
[341069573,1730328638951,-150.0,0.00043796,2]
[341069575,1730328638960,-637.79,0.000438,2]
[341069577,1730328638970,-500.0,0.000438,4]
[341069579,1730328638979,-200.0,0.000438,15]
[341069580,1730328638989,-150.0,0.000438,2]
[341069582,1730328638998,-150.0,0.00043801,2]
[341069584,1730328639008,-150.0,0.00043802,2]
[341069586,1730328639019,-150.0,0.00043804,2]
[341069588,1730328639029,-1947.59281712,0.00043804,2]
[341069589,1730328639040,-150.0,0.00043805,2]
[341069590,1730328639049,-200.0,0.00043805,2]
[341069591,1730328639059,-182.90166614,0.00043807,18]
[341069592,1730328639067,-150.0,0.00043807,2]
[341069593,1730328639077,-500.0,0.00043809,4]
[341069594,1730328639089,-150.0,0.00043814,2]
[341069595,1730328639098,-150.0,0.00043815,2]
[341069596,1730328639107,-500.0,0.00043818,4]
[341069597,1730328639116,-150.0,0.00043819,2]
[341069598,1730328639126,-150.0,0.00043824,2]
[341069599,1730328639135,-150.0,0.00043826,2]
[341069600,1730328639145,-791.5147831,0.00043826,2]
[341069601,1730328639154,-500.0,0.00043826,4]
[341069602,1730328639163,-150.0,0.00043828,2]
[341069603,1730328639174,-150.0,0.00043831,2]
[341069604,1730328639184,-150.0,0.00043832,2]
[341069605,1730328639194,-1947.59281712,0.00043833,2]
[341069606,1730328639203,-150.0,0.00043834,2]
[341069607,1730328639212,-500.0,0.00043835,7]
[341069608,1730328639223,-385.79850874,0.00043835,30]
[341069609,1730328639232,-500.0,0.00043835,4]
[341069610,1730328639242,-150.0,0.00043836,2]
[341069611,1730328639251,-150.0,0.00043842,2]